fUSD/lending_fUSD_20250226
["ID","MTS","AMOUNT","RATE_DAILY","PERIOD"]
[354516363,1740546638705,-500.0,0.00045409,120]
[354516364,1740546638716,-2386.19,0.00045409,120]
[354516365,1740546638728,-500.0,0.00045409,120]
[354516366,1740546638739,-500.0,0.00045409,120]
[354516367,1740546638749,-500.0,0.00045409,120]
[354516368,1740546638760,-1196.87,0.00045409,120]
[354516369,1740546638769,-500.0,0.00045409,120]
[354516370,1740546638778,-1716.23,0.00045409,120]
[354516371,1740546638788,-500.0,0.00045409,120]
[354516372,1740546638798,-604.21,0.00045409,120]
[354516373,1740546638807,-2952.03,0.00045409,120]
[354516374,1740546638816,-500.0,0.00045409,120]
[354516375,1740546638826,-500.0,0.00045409,120]
[354516376,1740546638835,-500.0,0.00045409,120]
[354516377,1740546638844,-500.0,0.00045409,120]
[354516378,1740546638853,-2041.21,0.00045409,120]
[354516379,1740546638862,-656.75,0.00045409,120]
[354516380,1740546638871,-423.2392155,0.00045409,120]
[354516381,1740546638881,-665.29,0.00045409,120]
[354516382,1740546638890,-2676.02,0.00045409,120]
[354516383,1740546638902,-806.12,0.00045409,120]
[354516384,1740546638912,-978.94,0.00045409,120]
[354516385,1740546638921,-1849.83,0.00045409,120]
[354516386,1740546638931,-501.4285939,0.00045409,120]
[354516387,1740546638942,-1595.64,0.00045409,120]
[354516388,1740546638951,-2717.59,0.00045409,120]
[354516389,1740546638961,-500.49244536,0.00045409,120]
[354516390,1740546638970,-500.0,0.00045409,120]
[354516391,1740546638979,-574.27,0.00045409,120]
[354516392,1740546638988,-500.0,0.00045409,120]
[354516393,1740546638997,-500.0,0.00045409,120]
[354516394,1740546639007,-500.0,0.00045409,120]
[354516395,1740546639016,-500.0,0.00045409,120]
[354516396,1740546639026,-984.89,0.00045409,120]
[354516397,1740546639035,-1292.89,0.00045409,120]
[354516398,1740546639044,-1450.58,0.00045409,120]
[354516399,1740546639054,-500.0,0.00045409,120]
[354516400,1740546639063,-500.0,0.00045409,120]
[354516401,1740546639072,-1723.95,0.00045409,120]
[354516402,1740546639081,-707.3,0.00045409,120]
[354516403,1740546639090,-501.44516207,0.00045409,120]
[354516404,1740546639099,-1581.71,0.00045409,120]
[354516405,1740546639109,-500.0,0.00045409,120]
[354516406,1740546639119,-500.0,0.00045409,120]
[354516407,1740546639128,-1343.37,0.00045409,120]
[354516408,1740546639138,-1262.93,0.00045409,120]
[354516409,1740546639147,-764.02,0.00045409,120]
[354516410,1740546639156,-2400.16,0.00045409,120]
[354516411,1740546639165,-500.0,0.00045409,120]
[354516412,1740546639175,-636.78,0.00045409,120]
[354516413,1740546639184,-500.0,0.00045409,120]
[354516414,1740546639192,-500.0,0.00045409,120]
[354516415,1740546639201,-776.98,0.00045409,120]
[354516416,1740546639211,-1509.86,0.00045409,120]
[354516417,1740546639220,-500.0,0.00045409,120]
[354516418,1740546639229,-1123.34,0.00045409,120]
[354516419,1740546639238,-903.91,0.00045409,120]
[354516420,1740546639247,-500.0,0.00045409,120]
[354516421,1740546639257,-701.25,0.00045409,120]
[354516422,1740546639266,-2563.7,0.00045409,120]
[354516423,1740546639276,-1792.57,0.00045409,120]
[354516424,1740546639285,-735.53,0.00045409,120]
[354516425,1740546639294,-500.0,0.00045409,120]
[354516426,1740546639304,-827.92,0.00045409,120]
[354516427,1740546639315,-3509.5,0.00045409,120]
[354516428,1740546639324,-1187.51,0.00045409,120]
[354516429,1740546639335,-1678.17,0.00045409,120]
[354516430,1740546639344,-821.05,0.00045409,30]
[354516431,1740546639355,-500.0,0.00045409,120]
[354516432,1740546639363,-1101.15,0.00045409,120]
[354516433,1740546639374,-1116.32,0.00045409,120]
[354516434,1740546639383,-803.73,0.00045409,120]
[354516435,1740546639393,-501.01815665,0.00045409,120]
[354516436,1740546639403,-500.0,0.00045409,120]
[354516437,1740546639413,-648.91,0.00045409,120]
[354516438,1740546639422,-1030.84,0.00045409,120]
[354516439,1740546639431,-1413.61,0.00045409,120]
[354516440,1740546639442,-2802.7,0.00045409,120]
[354516441,1740546639451,-1342.47,0.00045409,120]
[354516442,1740546639460,-1687.51,0.00045409,120]
[354516443,1740546639469,-766.55,0.00045409,120]
[354516444,1740546639478,-500.0,0.00045409,120]
[354516445,1740546639488,-502.41839032,0.00045409,120]
[354516446,1740546639497,-500.0,0.00045409,120]
[354516447,1740546639506,-500.0,0.00045409,120]
[354516448,1740546639516,-500.0,0.00045409,120]
[354516449,1740546639525,-840.32,0.00045409,120]
[354516450,1740546639534,-500.0,0.00045409,120]
[354516451,1740546639543,-500.0,0.00045409,120]
[354516452,1740546639552,-1122.78,0.00045409,120]
[354516453,1740546639562,-786.88,0.00045409,120]
[354516454,1740546639571,-500.0,0.00045409,120]
[354516455,1740546639581,-500.0,0.00045409,120]
[354516456,1740546639591,-525.64,0.00045409,120]
[354516457,1740546639601,-644.67,0.00045409,120]
[354516458,1740546639610,-962.57,0.00045409,120]
[354516459,1740546639620,-500.0,0.00045409,120]
[354516460,1740546639629,-707.18,0.00045409,120]
[354516461,1740546639639,-996.21,0.00045409,120]
[354516462,1740546639649,-770.61,0.00045409,120]
[354516463,1740546639658,-828.05,0.00045409,120]
[354516464,1740546639668,-500.0,0.00045409,120]
[354516465,1740546639677,-1537.91,0.00045409,120]
[354516466,1740546639687,-626.16,0.00045409,120]
[354516467,1740546639699,-535.12,0.00045409,120]
[354516468,1740546639708,-501.28,0.00045409,120]
[354516469,1740546639719,-1544.12,0.00045409,120]
[354516470,1740546639728,-3193.83,0.00045409,120]
[354516471,1740546639738,-503.04910637,0.00045409,120]
[354516472,1740546639747,-500.0,0.00045409,120]
[354516473,1740546639757,-500.0,0.00045409,120]
[354516474,1740546639766,-500.0,0.00045409,120]
[354516475,1740546639775,-809.22,0.00045409,120]
[354516476,1740546639784,-1141.9,0.00045409,120]
[354516477,1740546639793,-592.29,0.00045409,120]
[354516478,1740546639802,-1599.78,0.00045409,120]
[354516479,1740546639812,-616.11020186,0.00045409,120]
[354516480,1740546639821,-667.23,0.00045409,120]
[354516481,1740546639831,-1836.69,0.00045409,120]
[354516482,1740546639840,-971.48,0.00045409,120]
[354516483,1740546639849,-500.0,0.00045409,120]
[354516484,1740546639859,-815.22,0.00045409,120]
[354516485,1740546639868,-1128.74,0.00045409,120]
[354516486,1740546639879,-2666.92,0.00045409,120]
[354516487,1740546639889,-500.0,0.00045409,120]
[354516488,1740546639898,-500.0,0.00045409,120]
[354516489,1740546639907,-880.57,0.00045409,120]
[354516490,1740546639917,-1097.85,0.00045409,120]
[354516491,1740546639927,-233.855847,0.00045409,120]
[354516492,1740546639936,-1232.6,0.00045409,120]
[354516493,1740546639946,-1870.36,0.00045409,120]
[354516494,1740546639956,-500.0,0.00045409,120]
[354516495,1740546639966,-500.0,0.00045409,120]
[354516496,1740546639975,-1772.27,0.00045409,120]
[354516497,1740546639984,-495.25336926,0.00045409,120]
[354516498,1740546639994,-500.0,0.00045409,120]
[354516499,1740546640003,-790.24,0.00045409,120]
[354516500,1740546640012,-680.49,0.00045409,120]
[354516501,1740546640022,-1616.16,0.00045409,120]
[354516502,1740546640031,-2000.0,0.00045409,120]
[354516503,1740546640040,-579.65,0.00045409,40]
[354516504,1740546640049,-1781.83,0.00045409,120]
[354516505,1740546640059,-1957.61,0.00045409,120]
[354516506,1740546640071,-500.0,0.00045409,120]
[354516507,1740546640080,-500.0,0.00045409,120]
[354516508,1740546640089,-851.43,0.00045409,120]
[354516509,1740546640099,-1109.9,0.00045409,120]
[354516510,1740546640109,-500.0,0.00045409,120]
[354516511,1740546640120,-1484.52,0.00045409,60]
[354516512,1740546640129,-500.0,0.00045409,120]
[354516513,1740546640139,-500.0,0.00045409,120]
[354516514,1740546640149,-500.0,0.00045409,120]
[354516515,1740546640159,-2814.45,0.00045409,120]
[354516516,1740546640168,-500.0,0.00045409,120]
[354516517,1740546640177,-2062.88,0.00045409,120]
[354516518,1740546640186,-500.0,0.00045409,120]
[354516519,1740546640195,-621.71,0.00045409,120]
[354516520,1740546640203,-500.0,0.00045409,120]
[354516521,1740546640213,-500.0,0.00045409,120]
[354516522,1740546640222,-500.0,0.00045409,120]
[354516523,1740546640232,-1964.71,0.00045409,120]
[354516524,1740546640241,-90.21171272,0.00045409,120]
[354516525,1740546640258,-1909.78828728,0.00045409,120]
[354516526,1740546640267,-2600.1221179,0.00045409,120]
[354516527,1740546640278,-466.8978821,0.00045409,120]
[354516528,1740546640287,-354.58460835,0.00045409,120]
[354516529,1740546640417,-259.11539165,0.00045409,120]
[354516530,1740546640426,-524.64,0.00045409,120]
[354516531,1740546640435,-727.63,0.00045409,120]
[354516532,1740546640444,-989.15,0.00045409,120]
[354516533,1740546640453,-778.67499547,0.00045409,120]
[354516534,1740546642058,-548.98392228,0.00045407,120]
[354516536,1740546642070,-325.49919033,0.00045407,120]
[354516539,1740546642082,-286.083,0.00045407,120]
[354516614,1740546645595,-518.22756016,0.00045407,120]
[354516635,1740546646146,-167.55,0.0004459,2]
[354516637,1740546646156,-931.18632723,0.00045407,120]
[354516646,1740546646233,-1601.26367277,0.00045407,120]
[354516650,1740546646262,-175.27346142,0.00045407,120]
[354516652,1740546646272,-2385.0,0.00045407,120]
[354516654,1740546646283,-775.72927934,0.00045407,120]
[354516656,1740546646298,-741.10358647,0.00045407,120]
[354516658,1740546646307,-500.0,0.00045409,120]
[354516660,1740546646319,-218.37103398,0.00045409,120]
[354516663,1740546646333,-1647.53896602,0.00045409,120]
[354516665,1740546646343,-2125.57387713,0.00045409,120]
[354516739,1740547458281,-193.7134,0.00019688,7]
[354516740,1740547530143,5880.91530374,0.00011,2]
[354516741,1740547555327,1359.95281044,6.94e-05,2]
[354516742,1740547567142,705.54163016,8e-05,2]
[354516745,1740547678524,64583.22597529,0.0001,2]
[354516746,1740547705376,375.92698718,7.888e-05,2]
[354516765,1740547832006,-174.342,0.00019688,7]
[354516766,1740547832015,-150.0,0.00023822,2]
[354516767,1740547832025,-150.0,0.00023822,2]
[354516768,1740547832034,-91.2107439,0.00023822,2]
[354516769,1740547832046,-58.7892561,0.00023822,2]
[354516770,1740547832055,-2678.54566851,0.00024664,2]
[354516771,1740547832067,-1587.35583697,0.00024664,2]
[354516772,1740547832079,-400.41195319,0.00024664,2]
[354516773,1740547832091,-1933.82557355,0.00024664,2]
[354516774,1740547832106,-3002.04649014,0.00024664,2]
[354516775,1740547832118,-397.81447664,0.00024664,2]
[354516776,1740547832128,-154.91,0.00026849,2]
[354516777,1740547832137,-7504.38191506,0.00026849,2]
[354516778,1740547832147,-167.99,0.00035536,2]
[354516779,1740547832156,-601.58607981,0.000382,2]
[354516780,1740547832166,-160.59005867,0.00038299,2]
[354516781,1740547832176,-495.0,0.00038299,4]
[354516782,1740547832186,-72995.13067098,0.000383,30]
[354516783,1740547832195,-408.60402317,0.000397,30]
[354516784,1740547832205,-1725.0,0.000404,5]
[354516785,1740547832214,-1063.50572931,0.00040725,5]
[354516786,1740547832223,-921.66,0.00042117,2]
[354516787,1740547832232,-421.0,0.00042137,2]
[354516788,1740547832242,-167.66,0.0004263,2]
[354516789,1740547832251,-1060.0,0.00042869,30]
[354516790,1740547832260,-416.341,0.00043037,2]
[354516791,1740547832270,-445.162,0.00043037,2]
[354516792,1740547832279,-1507.205,0.00043037,2]
[354516793,1740547832288,-150.0,0.00043037,2]
[354516794,1740547832297,-1110.0,0.00043037,2]
[354516795,1740547832307,-7164.06,0.00043151,2]
[354516796,1740547832316,-2000.0,0.00043184,120]
[354516797,1740547832325,-598.42,0.00043204,120]
[354516798,1740547832335,-1000.0,0.00043204,2]
[354516799,1740547832344,-3218.72,0.00043232,2]
[354516800,1740547832353,-892.81,0.00043239,2]
[354516801,1740547832362,-1852.42,0.00043288,2]
[354516802,1740547832371,-200.0,0.00043791,2]
[354516803,1740547832381,-300.0,0.00043895,2]
[354516804,1740547832390,-1167.99,0.00044066,2]
[354516805,1740547832399,-23900.0,0.00044077,2]
[354516806,1740547832409,-1500.0,0.00044123,120]
[354516807,1740547832418,-500.0,0.00044154,2]
[354516808,1740547832428,-609.87,0.00044154,2]
[354516809,1740547832438,-204.55,0.00044163,2]
[354516810,1740547832447,-9453.65,0.00044277,2]
[354516811,1740547832456,-150.0,0.00044293,2]
[354516812,1740547832466,-150.0,0.00044313,2]
[354516813,1740547832475,-250.0,0.00044317,2]
[354516814,1740547832484,-150.0,0.0004433,2]
[354516815,1740547832494,-2500.0,0.00044331,8]
[354516816,1740547832504,-2500.0,0.00044331,8]
[354516817,1740547832513,-921.66,0.00044381,2]
[354516818,1740547832523,-179.27,0.00044386,2]
[354516819,1740547832532,-150.0,0.00044824,2]
[354516820,1740547832540,-150.0,0.00044873,2]
[354516821,1740547832550,-150.0,0.00044878,2]
[354516822,1740547832559,-150.0,0.00044894,2]
[354516823,1740547832568,-150.0,0.00044901,2]
[354516824,1740547832577,-179.81,0.00044915,2]
[354516825,1740547832587,-152.02,0.00044932,30]
[354516826,1740547832596,-151.92,0.00044932,30]
[354516827,1740547832606,-150.91,0.00044932,30]
[354516828,1740547832615,-445.62,0.00044932,30]
[354516829,1740547832623,-150.0,0.00044932,30]
[354516830,1740547832632,-150.0,0.00044932,30]
[354516831,1740547832642,-150.0,0.00044932,30]
[354516832,1740547832651,-875.67,0.00044932,30]
[354516833,1740547832661,-150.0,0.00044932,30]
[354516834,1740547832673,-150.0,0.00044932,30]
[354516835,1740547832682,-2408.51696,0.0004495,52]
[354516836,1740547832692,-150.0,0.00044991,2]
[354516837,1740547832703,-510.54212137,0.00044996,15]
[354516838,1740547832714,-356.91908144,0.00044996,2]
[354516839,1740547832724,-9446.66,0.00044999,120]
[354516840,1740547832734,-5387.68,0.00044999,120]
[354516841,1740547832744,-3939.16,0.00044999,120]
[354516842,1740547832753,-3769.62,0.00044999,120]
[354516843,1740547832764,-6251.28,0.00044999,120]
[354516844,1740547832773,-3693.98,0.00044999,120]
[354516845,1740547832784,-2086.74,0.00044999,120]
[354516846,1740547832795,-5681.3,0.00044999,120]
[354516847,1740547832805,-850.17,0.00044999,120]
[354516848,1740547832815,-500.0,0.00044999,120]
[354516849,1740547832825,-2632.12,0.00044999,120]
[354516850,1740547832907,-525.66,0.00044999,120]
[354516851,1740547832917,-5175.13,0.00044999,120]
[354516852,1740547832927,-1508.76,0.00044999,120]
[354516853,1740547832937,-2599.28,0.00044999,120]
[354516854,1740547832947,-3621.26,0.00044999,120]
[354516855,1740547832957,-5115.99,0.00044999,120]
[354516856,1740547832966,-2257.56,0.00044999,120]
[354516857,1740547832976,-5202.55,0.00044999,120]
[354516858,1740547832986,-5436.66,0.00044999,120]
[354516859,1740547832996,-2923.36,0.00044999,120]
[354516860,1740547833006,-500.0,0.00044999,120]
[354516861,1740547833016,-647.03,0.00044999,120]
[354516862,1740547833025,-3664.38,0.00044999,120]
[354516863,1740547833035,-1455.96,0.00044999,120]
[354516864,1740547833047,-741.83,0.00044999,120]
[354516865,1740547833059,-3037.38,0.00044999,120]
[354516866,1740547833077,-2293.0,0.00044999,120]
[354516867,1740547833087,-5244.43,0.00044999,120]
[354516868,1740547833097,-1509.32,0.00044999,120]
[354516869,1740547833109,-503.30794306,0.00044999,120]
[354516870,1740547833119,-6033.87,0.00044999,120]
[354516871,1740547833128,-1390.34,0.00044999,120]
[354516872,1740547833139,-249.85311035,0.00044999,120]
[354516873,1740547833150,-1027.89,0.00045,120]
[354516874,1740547833160,-987.88,0.00045,120]
[354516875,1740547833170,-987.88,0.00045,120]
[354516876,1740547833181,-987.88,0.00045,120]
[354516877,1740547833191,-776.7,0.00045,120]
[354516878,1740547833200,-93343.23069927,0.00045,2]
[354516879,1740547833230,-1257.00900009,0.00045,2]
[354516880,1740547834853,-150.0,0.00040725,5]
[354516881,1740547834863,-500.0,0.00044999,120]
[354516882,1740547834872,-1348.10131452,0.00044999,7]
[354516893,1740547837817,-653.26868548,0.00044999,7]
[354516894,1740547837826,-2738.1994568,0.00044999,120]
[354516895,1740547837931,-651.8505432,0.00044999,120]
[354516896,1740547837941,-2816.62,0.00044999,120]
[354516897,1740547837951,-1934.07979486,0.00045,2]
[354516898,1740547837963,-303.90860848,0.00045,2]
[354516899,1740547837974,-476.81295156,0.00045,2]
[354516900,1740547837986,-437.70943335,0.00045,2]
[354516901,1740547837997,-376.0213201,0.00045,2]
[354516903,1740547839965,-503.00535015,0.00044999,120]
[354516904,1740547839976,-500.0,0.00044999,120]
[354516905,1740547839985,-106597.77201988,0.00045,2]
[354516906,1740547840084,-2170.14205106,0.00045,2]
[354516907,1740547840097,-534.85879025,0.00045,2]
[354516908,1740547840109,-917.65074819,0.00045,2]
[354516909,1740547840158,-73709.94286293,0.00045,2]
[354516910,1740547840167,-50.05898687,0.00045,60]
[354516911,1740547840179,-1655.83101313,0.00045,60]
[354516912,1740547840188,-150.0,0.00045096,2]
[354516913,1740547840197,-510.54212135,0.00045122,15]
[354516914,1740547840207,-1060.0,0.00045125,30]
[354516915,1740547840216,-150.0,0.00045134,2]
[354516916,1740547840226,-603.82,0.00045205,120]
[354516917,1740547840235,-510.54212135,0.00045248,15]
[354516918,1740547840245,-163.43783851,0.00045273,71]
[354516919,1740547840254,-79231.68790504,0.00045273,50]
[354516926,1740547845327,-673.05,0.00044999,120]
[354516927,1740547845337,-547.23,0.00044999,120]
[354516928,1740547845346,-1079.04,0.00044999,120]
[354516929,1740547845356,-12304.28501483,0.00045273,50]
[354516930,1740547845367,-644.73,0.00045273,50]
[354516931,1740547845378,-17063.80206054,0.00045273,50]
[354516932,1740547845387,-9446.66,0.00045273,120]
[354516933,1740547845397,-5387.68,0.00045273,120]
[354516934,1740547845406,-3939.16,0.00045273,120]
[354516935,1740547845417,-3769.62,0.00045273,120]
[354516936,1740547845427,-6251.28,0.00045273,120]
[354516937,1740547845437,-3693.98,0.00045273,120]
[354516938,1740547845446,-2086.74,0.00045273,120]
[354516939,1740547845456,-5681.3,0.00045273,120]
[354516940,1740547845466,-850.17,0.00045273,120]
[354516941,1740547845476,-500.0,0.00045273,120]
[354516942,1740547845486,-2632.12,0.00045273,120]
[354516943,1740547845496,-525.66,0.00045273,120]
[354516944,1740547845505,-5175.13,0.00045273,120]
[354516945,1740547845515,-1508.76,0.00045273,120]
[354516946,1740547845524,-2599.28,0.00045273,120]
[354516947,1740547845534,-3621.26,0.00045273,120]
[354516948,1740547845543,-26.90027722,0.00045273,120]
[354516949,1740547845571,-360.004999,0.00045273,120]
[354516950,1740547845583,-4729.08472378,0.00045273,120]
[354516951,1740547845592,-2257.56,0.00045273,120]
[354516952,1740547845602,-5202.55,0.00045273,120]
[354516954,1740547845612,-5436.66,0.00045273,120]
[354516955,1740547845622,-2041.03659365,0.00045273,120]
[354516956,1740547845637,-882.32340635,0.00045273,120]
[354516957,1740547845648,-76.60711165,0.00045273,120]
[354516958,1740547846198,-680.75379565,0.00042825,2]
[354516959,1740547846212,-103.24620435,0.00042825,2]
[354516960,1740547846222,-366.05878278,0.00045273,120]
[354516961,1740547846231,-647.03,0.00045273,120]
[354516962,1740547846241,-3664.38,0.00045273,120]
[354516963,1740547846251,-953.81881999,0.00045273,120]
[354516964,1740547846265,-502.14118001,0.00045273,120]
[354516965,1740547846275,-447.29281997,0.00045273,120]
[354516966,1740547846294,-294.53718003,0.00045273,120]
[354516967,1740547846304,-436.36415165,0.00045273,120]
[354516968,1740547846316,-2601.01584835,0.00045273,120]
[354516969,1740547846325,-2293.0,0.00045273,120]
[354516970,1740547846335,-5244.43,0.00045273,120]
[354516971,1740547846345,-1509.32,0.00045273,120]
[354516972,1740547846354,-6033.87,0.00045273,120]
[354516973,1740547846364,-1390.34,0.00045273,120]
[354516974,1740547846373,-2001.37,0.00045273,7]
[354516975,1740547846383,-3390.05,0.00045273,120]
[354516976,1740547846392,-2816.62,0.00045273,120]
[354516977,1740547846401,-500.0,0.00045273,120]
[354516978,1740547846411,-673.05,0.00045273,120]
[354516979,1740547846420,-1079.04,0.00045273,120]
[354516980,1740547846430,-547.23,0.00045273,120]
[354516981,1740547846439,-150.0,0.00045277,2]
[354516982,1740547846449,-460.33514991,0.00045309,19]
[354516983,1740547846458,-1053.413,0.00045309,73]
[354516984,1740547846468,-167.45,0.00045344,2]
[354516985,1740547846477,-510.54212135,0.00045375,15]
[354516986,1740547846487,-150.0,0.00045381,2]
[354516987,1740547846496,-1037.4,0.0004539,120]
[354516988,1740547846506,-1037.4,0.0004539,120]
[354516989,1740547846515,-1037.4,0.0004539,120]
[354516990,1740547846525,-950.30186961,0.0004539,120]
[354516991,1740547846541,-87.09813039,0.0004539,120]
[354516992,1740547846551,-1037.4,0.0004539,120]
[354516993,1740547846560,-875.50186961,0.0004539,120]
[354516994,1740547846572,-161.89813039,0.0004539,120]
[354516995,1740547846581,-1037.4,0.0004539,120]
[354516996,1740547846590,-1037.4,0.0004539,120]
[354516997,1740547846599,-1617.49,0.0004539,120]
[354516998,1740547846609,-1617.49,0.0004539,120]
[354516999,1740547846618,-1617.49,0.0004539,120]
[354517000,1740547846627,-324.91381416,0.0004539,120]
[354517001,1740547846639,-1292.57618584,0.0004539,120]
[354517002,1740547846648,-150.0,0.00045392,2]
[354517003,1740547846657,-150.0,0.00045396,2]
[354517004,1740547846667,-300.0,0.00045399,2]
[354517005,1740547846676,-503.29856847,0.000454,10]
[354517006,1740547846686,-500.0,0.00045405,120]
[354517007,1740547846696,-500.0,0.00045405,120]
[354517008,1740547846708,-500.0,0.00045405,120]
[354517009,1740547846717,-502.87109302,0.00045405,120]
[354517010,1740547846727,-503.46935905,0.00045405,120]
[354517011,1740547846737,-500.0,0.00045405,120]
[354517012,1740547846747,-500.0,0.00045405,120]
[354517013,1740547846756,-435.75479362,0.00045405,120]
[354517014,1740547846767,-64.24520638,0.00045405,120]
[354517015,1740547846777,-223.30285768,0.00045405,120]
[354517019,1740549032028,-250.0,0.00021,2]
[354517020,1740549032038,-250.0,0.00023,2]
[354517021,1740549032471,-50.0,0.00023,2]
[354517022,1740549032481,-350.0,0.00025,2]
[354517023,1740549032491,-141.345,0.00026849,2]
[354517024,1740549032513,-9.025,0.00026849,2]
[354517025,1740549032524,-199.0,0.00027452,2]
[354517027,1740549032534,-2412.0,0.000295,3]
[354517029,1740549032543,-182.89395777,0.00034448,2]
[354517031,1740549032553,-150.0,0.00034548,10]
[354517033,1740549032563,-5502.00951555,0.000356,5]
[354517035,1740549032575,-47.99048445,0.000356,5]
[354517037,1740549032585,-550.0,0.00041697,5]
[354517039,1740549032595,-922.91,0.00041699,2]
[354517041,1740549032604,-150.0,0.0004215,2]
[354517043,1740549032613,-150.0,0.00042864,4]
[354517046,1740549032622,-1664.0,0.00042865,2]
[354517049,1740549032631,-1425.0,0.00042865,2]
[354517051,1740549032641,-540.0,0.00042865,2]
[354517054,1740549032650,-4034.0,0.00042865,2]
[354517057,1740549032659,-3922.0,0.00042865,2]
[354517060,1740549032668,-215.89,0.00043103,120]
[354517063,1740549032678,-446.4,0.00043233,2]
[354517066,1740549032687,-28309.74,0.00043311,64]
[354517069,1740549032696,-1000.0,0.0004333,2]
[354517072,1740549032706,-182.89395776,0.00043341,2]
[354517076,1740549032715,-530.62,0.00043413,2]
[354517079,1740549032724,-719.85,0.00043441,2]
[354517082,1740549032737,-530.62,0.00043756,2]
[354517085,1740549032747,-1349.086,0.0004376,68]
[354517088,1740549032756,-150.0,0.0004376,2]
[354517091,1740549032766,-150.0,0.00043818,2]
[354517094,1740549032775,-3164.40178607,0.00043919,2]
[354517100,1740549032795,-795.57,0.00043919,2]
[354517103,1740549032807,-930.99788812,0.00043919,2]
[354517111,1740549032842,-791.00211188,0.00043919,2]
[354517609,1740549037860,-150.0,0.00043341,2]
[354517611,1740549037870,-480.69068571,0.00043919,2]
[354517613,1740549037883,-4087.13897112,0.00043919,2]
[354517625,1740549037988,-1106.10492513,0.00043919,2]
[354517627,1740549038000,-511.17103011,0.00043919,2]
[354517630,1740549038022,-4102.97005524,0.00043919,2]
[354517632,1740549038034,-2866.03329123,0.00043919,2]
[354517634,1740549038045,-1632.63896989,0.00043919,2]
[354517637,1740549038064,-3431.2802855,0.00043919,2]
[354517639,1740549038073,-922.91,0.00043962,2]
[354517640,1740549038082,-530.62,0.00044099,2]
[354517642,1740549038092,-150.0,0.00044156,2]
[354517644,1740549038101,-150.0,0.00044167,2]
[354517646,1740549038114,-250.0,0.00044217,2]
[354517648,1740549038123,-150.0,0.00044257,2]
[354517649,1740549038132,-150.0,0.00044297,2]
[354517651,1740549038142,-150.0,0.00044344,2]
[354517653,1740549038153,-525.01364011,0.00044398,5]
[354517657,1740549038177,-244.98635989,0.00044398,5]
[354517659,1740549038187,-2000.0,0.00044406,120]
[354517661,1740549038197,-530.62,0.00044441,2]
[354517663,1740549038206,-150.0,0.00044469,2]
[354517665,1740549038215,-150.0,0.00044537,2]
[354517666,1740549038225,-150.0,0.00044563,2]
[354517668,1740549038234,-150.0,0.00044571,2]
[354517670,1740549038243,-150.0,0.00044617,2]
[354517672,1740549038252,-150.0,0.00044626,2]
[354517674,1740549038261,-150.0,0.00044659,2]
[354517676,1740549038270,-400.0,0.000447,16]
[354517677,1740549038280,-530.62,0.00044784,2]
[354517679,1740549038290,-440.37,0.00044795,30]
[354517681,1740549038299,-900.0,0.000448,16]
[354517685,1740549038308,-355.8029834,0.00044877,30]
[354517712,1740549038509,-3953.2226,0.00044897,2]
[354517713,1740549038519,-242.40067179,0.00044897,28]
[354517715,1740549038528,-309.17689079,0.00044898,2]
[354517717,1740549038537,-1000.0,0.00044898,2]
[354517719,1740549038547,-2500.0,0.00044898,2]
[354517721,1740549038556,-1651.57157464,0.00044899,120]